bitfinex/quotes_SOLUSD_20250525
["timestamp","ask_amount","ask_price","bid_price","bid_amount"]
[1748213713298,19.30136414,174.55,174.49,39.44]
[1748213713507,18.15550729,174.53,174.49,39.44]
[1748213713811,18.15550729,174.52,174.49,39.44]
[1748213714306,5.51346558,174.55,174.49,39.44]
[1748213714607,18.15550729,174.54,174.49,39.44]
[1748213714912,18.15550729,174.53,174.49,39.44]
[1748213715099,18.15550729,174.52,174.49,39.44]
[1748213715291,18.15550729,174.54,174.49,39.44]
[1748213715491,1.14585685,174.55,174.49,39.44]
[1748213715893,19.30136414,174.55,174.49,39.44]
[1748213716813,1.14585685,174.55,174.49,39.44]
[1748213716996,19.30136414,174.55,174.49,43.45160626]
[1748213717187,18.15550729,174.54,174.49,39.44]
[1748213717708,1.14575237,174.56,174.49,43.45162524]
[1748213717910,137.9,174.57,174.49,43.45162524]
[1748213718083,137.9,174.57,174.5,0.14216157]
[1748213718284,137.9,174.57,174.51,34.34]
[1748213719300,7.80950356,174.59,174.52,4.0110016]
[1748213719491,19.30099178,174.6,174.52,8.8110016]
[1748213720096,1.14548449,174.6,174.52,8.8110016]
[1748213720424,1.14540977,174.61,174.52,8.8110016]
[1748213720933,19.30091706,174.61,174.52,8.8110016]
[1748213721098,18.15550729,174.6,174.52,8.8110016]
[1748213721715,18.15550729,174.58,174.52,4.8]
[1748213722520,18.15550729,174.59,174.52,8.81099634]
[1748213722729,1.1455328,174.6,174.52,8.81099634]
[1748213723026,18.15550729,174.59,174.52,8.81099634]
[1748213723600,19.30104009,174.6,174.52,8.81099634]
[1748213723822,18.15550729,174.59,174.52,8.81099634]
[1748213724122,19.30104009,174.6,174.52,8.81099634]
[1748213724316,18.15550729,174.6,174.52,8.81099634]
[1748213724735,1.14542642,174.61,174.53,0.14216157]
[1748213725023,137.9,174.63,174.55,26.0]
[1748213725194,156.05550729,174.63,174.56,39.2]
[1748213725388,18.15550729,174.62,174.56,73.54]
[1748213725596,137.9,174.63,174.56,73.54]
[1748213725801,18.15550729,174.62,174.56,73.54]
[1748213726517,157.20081207,174.63,174.56,73.54]
[1748213726703,18.15550729,174.62,174.56,73.54]
[1748213726907,18.15550729,174.61,174.56,73.54]
[1748213727129,18.15550729,174.6,174.56,73.54]
[1748213727301,18.15550729,174.59,174.56,73.54]
[1748213727506,18.15550729,174.57,174.56,73.54]
[1748213727939,18.15550729,174.57,174.56,39.2]
[1748213728113,19.30117951,174.57,174.52,4.8]
[1748213728435,18.15550729,174.54,174.53,39.18]
[1748213728602,18.15550729,174.55,174.53,39.18]
[1748213728800,1.14567222,174.57,174.53,39.18]
[1748213728999,18.15550729,174.55,174.53,39.18]
[1748213729409,18.15550729,174.54,174.53,39.18]
[1748213729727,1.14567222,174.57,174.52,4.8]
[1748213729728,6.5988,174.56,174.52,4.8]
[1748213729936,18.15550729,174.53,174.52,4.8]
[1748213730801,1.1458224,174.55,174.52,4.8]
[1748213731000,18.15550729,174.54,174.52,4.8]
[1748213733613,1.14583768,174.55,174.52,4.8]
[1748213733820,18.15550729,174.55,174.52,4.8]
[1748213735527,18.15550729,174.54,174.52,4.8]
[1748213739054,18.15550729,174.53,174.52,4.8]
[1748213739406,139.04581446,174.55,174.52,4.8]
[1748213739610,18.15550729,174.53,174.52,4.8]
[1748213740434,19.30144208,174.53,174.52,4.8]
[1748213740634,137.9,174.55,174.52,4.8]
[1748213740847,18.15550729,174.53,174.52,4.8]
[1748213742542,19.30139564,174.54,174.52,4.8]
[1748213742838,1.14588835,174.54,174.52,4.8]
[1748213743034,19.30139564,174.54,174.52,4.8]
[1748213743339,18.15550729,174.54,174.52,4.8]
[1748213743913,156.05550729,174.55,174.52,8.81091759]
[1748213744360,156.05550729,174.55,174.52,4.8]
[1748213744728,145.6816,174.6,174.52,8.81093663]
[1748213744931,18.15550729,174.58,174.52,8.81093663]
[1748213745134,18.15550729,174.58,174.52,18.83844064]
[1748213746045,146.82709323,174.6,174.52,18.83844064]
[1748213746344,145.6816,174.6,174.52,18.83844064]
[1748213746526,18.15550729,174.58,174.52,18.83844064]
[1748213747337,18.15550729,174.56,174.52,8.81093663]
[1748213747529,18.15550729,174.55,174.52,8.81093663]
[1748213747930,18.15550729,174.56,174.52,8.81093663]
[1748213748322,146.82707612,174.6,174.52,8.81093663]
[1748213748543,18.15550729,174.57,174.52,8.81093663]
[1748213748919,18.15550729,174.55,174.52,4.8]
[1748213749437,18.15550729,174.54,174.52,4.8]
[1748213752046,19.3013841,174.54,174.52,4.8]
[1748213752544,18.15550729,174.54,174.52,4.8]
[1748213755653,18.15550729,174.55,174.52,4.8]
[1748213756253,18.15550729,174.54,174.52,4.8]
[1748213758243,19.30131193,174.55,174.52,4.8]
[1748213758749,18.15550729,174.54,174.52,4.8]
[1748213759943,1.14554098,174.59,174.52,8.81079341]
[1748213760143,19.30104827,174.59,174.52,8.81079341]
[1748213760651,8.30612427,174.58,174.52,43.15079341]
[1748213761136,29.74646365,174.58,174.52,43.15079341]
[1748213761337,4.02899965,174.57,174.52,43.15079341]
[1748213762556,4.09424633,174.61,174.53,0.14216157]
[1748213762728,4.27682569,174.6,174.53,0.14216157]
[1748213763253,4.27682569,174.6,174.54,4.01054199]
[1748213763632,4.03129838,174.59,174.54,4.01054199]
[1748213763950,22.18680567,174.59,174.54,4.01054199]
[1748213764245,4.03129838,174.59,174.54,4.01054199]
[1748213764459,4.03129838,174.59,174.55,0.14216157]
[1748213764633,18.15550729,174.61,174.55,0.14216157]
[1748213765329,18.15550729,174.61,174.56,4.01008249]
[1748213765661,1.14528874,174.63,174.56,4.01008249]
[1748213765662,4.02941837,174.6,174.57,39.12]
[1748213766851,4.02941837,174.6,174.57,43.12974564]
[1748213767245,8.0338,174.64,174.57,43.12974564]
[1748213767549,3.28173619,174.63,174.58,0.14216157]
[1748213767734,7.55478973,174.63,174.58,0.71485814]
[1748213768439,3.28173619,174.63,174.58,0.71485814]
[1748213768644,3.28173619,174.63,174.59,4.00939343]
[1748213769660,140.68977061,174.68,174.59,4.00939343]
[1748213769833,18.15550729,174.64,174.59,4.00939343]
[1748213770234,18.15550729,174.65,174.59,4.00939343]
[1748213770646,18.15550729,174.65,174.58,4.15178466]
[1748213770854,18.15550729,174.64,174.58,4.00962309]
[1748213771358,18.15550729,174.65,174.58,4.00962309]
[1748213771936,18.15550729,174.64,174.58,4.00962309]
[1748213772655,19.30074906,174.64,174.58,4.00962309]
[1748213772962,18.15550729,174.64,174.58,4.00962309]
[1748213773461,18.15550729,174.63,174.58,4.00962309]
[1748213774145,18.15550729,174.61,174.57,73.44]
[1748213774349,18.15550729,174.6,174.58,39.1]
[1748213775057,9.3155667,174.64,174.58,39.1]
[1748213775058,18.15550729,174.63,174.58,39.1]
[1748213775763,25.34223297,174.64,174.58,43.10948657]
[1748213776349,24.19700729,174.64,174.58,43.10948657]
[1748213776556,6.0415,174.64,174.58,43.10948657]
[1748213777554,24.19700729,174.64,174.58,43.10948657]
[1748213777769,25.3422211,174.64,174.58,43.10948657]
[1748213778067,157.20066551,174.65,174.58,43.10948657]
[1748213779863,19.3007307,174.64,174.58,43.10948657]
[1748213780063,19.3007307,174.64,174.58,39.1]
[1748213780249,18.15550729,174.63,174.58,39.1]
[1748213780648,18.15550729,174.62,174.58,39.1]
[1748213781164,1.14522341,174.64,174.58,43.10954921]
[1748213781374,1.14522341,174.64,174.59,4.8]
[1748213781579,18.15550729,174.63,174.59,4.8]
[1748213781875,19.3007307,174.64,174.59,4.8]
[1748213782869,8.2735,174.68,174.6,34.32]
[1748213783280,26.42900729,174.68,174.6,34.32]
[1748213783463,8.2735,174.68,174.6,34.32]
[1748213783647,26.42900729,174.68,174.6,34.32]
[1748213783965,8.2735,174.68,174.61,4.00893419]
[1748213784158,8.2735,174.68,174.61,14.03126968]
[1748213785964,6.6287,174.68,174.61,14.03126968]
[1748213786372,18.15550729,174.7,174.61,14.03126968]
[1748213786670,7.6573,174.72,174.61,14.03126968]
[1748213786671,7.6573,174.72,174.62,0.14216157]
[1748213786852,25.81280729,174.72,174.62,0.14216157]
[1748213787054,7.6573,174.72,174.62,0.14216157]
[1748213787253,18.15550729,174.71,174.62,0.14216157]
[1748213788178,18.15550729,174.71,174.63,4.00847506]
[1748213788472,18.15550729,174.71,174.64,38.64]
[1748213788969,18.15550729,174.69,174.64,38.64]
[1748213789273,4.05310862,174.71,174.64,38.64]
[1748213789274,18.15550729,174.66,174.64,38.64]
[1748213790073,5.16841916,174.68,174.64,38.64]
[1748213790289,18.15550729,174.66,174.64,38.64]
[1748213790982,18.15550729,174.67,174.64,38.64]
[1748213792068,18.15550729,174.66,174.64,38.64]
[1748213792279,1.14514743,174.65,174.64,38.64]
[1748213792451,19.30065472,174.65,174.59,8.80933645]
[1748213792655,19.30065472,174.65,174.6,38.64]
[1748213793484,19.30065472,174.65,174.6,42.64911104]
[1748213793662,19.30065472,174.65,174.6,4.00911104]
[1748213793866,19.30065472,174.65,174.61,38.64]
[1748213794473,19.30065472,174.65,174.6,4.00911104]
[1748213794672,19.30065472,174.65,174.59,8.80933016]
[1748213794876,19.30065472,174.65,174.61,38.64]
[1748213795461,1.14514743,174.65,174.61,38.64]
[1748213795667,19.30065472,174.65,174.61,38.64]
[1748213796787,1.14514743,174.65,174.61,38.64]
[1748213796956,7.68469383,174.66,174.61,38.64]
[1748213797155,25.84020112,174.66,174.61,38.64]
[1748213797456,19.30052558,174.67,174.61,42.64892143]
[1748213798665,4.01174388,174.66,174.61,42.64892143]
[1748213799595,18.15550729,174.67,174.61,42.64892143]
[1748213799959,21.42894499,174.67,174.61,42.64892143]
[1748213801192,1.14501631,174.67,174.61,42.64892143]
[1748213801383,18.15550729,174.67,174.61,42.64892143]
[1748213801684,4.01498355,174.66,174.61,42.64892143]
[1748213802289,4.01498355,174.66,174.62,34.3]
[1748213802459,4.09424633,174.71,174.62,34.3]
[1748213802655,20.89365145,174.72,174.62,34.3]
[1748213803286,4.02384984,174.71,174.63,4.00847506]
[1748213803584,8.29109264,174.71,174.63,14.02966271]
[1748213804359,4.02384984,174.71,174.63,14.02966271]
[1748213804882,26.84316437,174.72,174.63,14.02966271]
[1748213805074,7.54295507,174.72,174.64,0.14216157]
[1748213805265,7.54295507,174.73,174.65,4.00801603]
[1748213805463,25.69846236,174.73,174.65,4.00801603]
[1748213805678,4.02978447,174.72,174.65,4.00801603]
[1748213806559,4.02978447,174.71,174.65,4.00801603]
[1748213807385,4.02978447,174.71,174.66,0.14216157]
[1748213807587,6.5659,174.74,174.67,72.84]
[1748213808480,7.71046479,174.74,174.68,4.00732768]
[1748213808898,4.02875712,174.73,174.68,4.00732768]
[1748213809601,6.5659,174.74,174.68,4.00732768]
[1748213809779,1.14458941,174.74,174.68,4.00732768]
[1748213810280,4.26402649,174.75,174.68,4.00732768]
[1748213810484,5.40852254,174.75,174.68,4.00732768]
[1748213810791,4.03238774,174.74,174.68,4.00732768]
[1748213811499,1.14449605,174.75,174.68,4.00732768]
[1748213812182,19.30000334,174.75,174.68,4.00732768]
[1748213812382,19.30000334,174.75,174.67,76.84753784]
[1748213812795,18.15550729,174.74,174.67,72.84]
[1748213813184,1.14449605,174.75,174.67,72.84]
[1748213813384,18.15550729,174.74,174.67,72.84]
[1748213813799,21.42886634,174.74,174.67,72.84]
[1748213814007,4.03267686,174.73,174.67,72.84]
[1748213814390,4.03267686,174.73,174.64,4.00819166]
[1748213814391,19.30019593,174.72,174.64,4.00819166]
[1748213814702,19.30019593,174.72,174.65,72.82]
[1748213814904,18.15550729,174.71,174.65,72.82]
[1748213815082,1.14468864,174.72,174.65,72.82]
[1748213815774,7.4879428,174.73,174.65,72.82]
[1748213816175,25.64345009,174.73,174.65,72.82]
[1748213816405,25.64345009,174.73,174.65,76.82791472]
[1748213816571,18.15550729,174.72,174.65,72.82]
[1748213817390,4.03189435,174.71,174.65,72.82]
[1748213817575,22.18740164,174.71,174.65,72.82]
[1748213818190,18.15550729,174.71,174.65,72.82]
[1748213818387,1.14481969,174.7,174.63,4.00845389]
[1748213818602,1.14481969,174.7,174.64,72.84]
[1748213819188,19.30032698,174.7,174.64,38.54]
[1748213819393,18.15550729,174.69,174.64,38.54]
[1748213820109,18.15550729,174.68,174.64,38.54]
[1748213820485,1.14501631,174.67,174.64,38.54]
[1748213821000,19.3005236,174.67,174.64,38.54]
[1748213822309,4.02782398,174.66,174.64,38.54]
[1748213822506,5.17293946,174.66,174.64,38.54]
[1748213823599,1.14511548,174.66,174.64,38.54]
[1748213825701,1.14495076,174.68,174.64,38.54]
[1748213825905,19.30045805,174.68,174.64,38.54]
[1748213826277,4.02868747,174.67,174.64,38.54]
[1748213826689,1.14508187,174.66,174.64,38.54]
[1748213827110,5.17371224,174.67,174.64,38.54]
[1748213827602,5.17371224,174.67,174.61,38.54]
[1748213827603,18.15550729,174.65,174.61,38.54]
[1748213828603,7.54692477,174.67,174.61,38.54]
[1748213828812,1.14514743,174.65,174.61,38.54]
[1748213829913,1.14510167,174.66,174.61,38.54]
[1748213832213,3.27523691,174.68,174.62,4.00870461]
[1748213832510,3.27523691,174.68,174.63,34.3]
[1748213832703,4.09424633,174.7,174.63,34.3]
[1748213833015,1.14481969,174.7,174.63,34.3]
[1748213833314,4.02828863,174.69,174.63,34.3]
[1748213834216,4.09424633,174.74,174.65,26.0]
[1748213834510,23.3943301,174.74,174.64,5.55774553]
[1748213834693,22.18402985,174.73,174.64,5.55774553]
[1748213835099,18.15550729,174.71,174.64,4.00824553]
[1748213835503,22.41857104,174.72,174.64,4.00824553]
[1748213835705,1.14475416,174.71,174.64,4.00824553]
[1748213836096,1.14475416,174.71,174.65,72.84]
[1748213836320,1.14475416,174.71,174.66,38.54]
[1748213836920,4.02979826,174.7,174.66,38.54]
[1748213837120,4.02979826,174.7,174.66,42.54768513]
[1748213837615,4.02979826,174.7,174.66,4.00768513]
[1748213837822,4.02979826,174.7,174.67,38.48]
[1748213837996,1.14475416,174.71,174.67,38.48]
[1748213839526,19.30026145,174.71,174.67,38.48]
[1748213840125,4.03080094,174.7,174.67,38.48]
[1748213840608,1.14488522,174.69,174.67,38.48]
[1748213841010,4.03080094,174.68,174.67,38.48]
[1748213843130,1.14488522,174.69,174.67,38.48]
[1748213843941,3.27633087,174.71,174.67,42.4875295]
[1748213845100,34.3,174.73,174.6,40.0295]
[1748213845326,18.15550729,174.69,174.6,40.0295]
[1748213845502,4.03383698,174.7,174.6,40.0295]
[1748213845710,4.03383698,174.7,174.61,4.00892113]
[1748213845918,3.27711739,174.69,174.61,4.00892113]
[1748213846113,4.03383698,174.68,174.61,4.00892113]
[1748213847334,1.14491902,174.69,174.61,4.00892113]
[1748213849175,5.18108965,174.68,174.61,4.00892113]
[1748213849726,1.14499126,174.68,174.61,4.00892113]
[1748213850935,1.14488522,174.69,174.61,4.00892113]
[1748213851606,4.03599017,174.68,174.61,4.00892113]
[1748213852010,5.18098434,174.68,174.61,4.00892113]
[1748213852210,5.18098434,174.68,174.62,34.3]
[1748213852810,4.03599017,174.67,174.62,34.3]
[1748213853847,1.14499417,174.68,174.62,34.3]
[1748213855351,1.14499417,174.68,174.63,38.48]
[1748213856063,5.18430436,174.67,174.63,38.48]
[1748213857327,1.14506284,174.67,174.63,38.48]
[1748213857532,19.30057013,174.67,174.63,38.48]
[1748213857744,18.15550729,174.65,174.63,38.48]
[1748213858236,19.3005236,174.67,174.63,38.48]
[1748213858849,4.04336955,174.66,174.63,38.48]
[1748213860147,1.145213,174.64,174.63,38.48]
[1748213861168,5.18858255,174.64,174.63,38.48]
[1748213861335,4.04336955,174.64,174.63,38.48]
[1748213862336,5.18858255,174.64,174.63,38.48]
[1748213866466,4.04336955,174.64,174.63,38.48]
[1748213866868,5.18858255,174.64,174.63,38.48]
[1748213869197,23.34408984,174.64,174.63,38.48]
[1748213869759,26.62691084,174.64,174.63,38.48]
[1748213869975,28.76455061,174.64,174.63,38.48]
[1748213870172,33.03892463,174.64,174.63,38.48]
[1748213870374,13.73820434,174.64,174.63,38.48]
[1748213870583,11.60056457,174.64,174.63,38.48]
[1748213870789,7.55719502,174.64,174.63,38.48]
[1748213870963,3.282821,174.64,174.63,38.48]
[1748213871164,4.09424633,174.66,174.63,38.48]
[1748213871862,4.05238688,174.65,174.63,42.48847488]
[1748213872997,4.05238688,174.65,174.63,38.48]
[1748213873506,139.04497319,174.68,174.63,38.48]
[1748213873507,137.9,174.68,174.63,42.48826614]
[1748213873663,4.09424633,174.7,174.65,4.00801603]
[1748213874689,4.09424633,174.7,174.67,26.0]
[1748213874993,4.09424633,174.7,174.68,34.46216157]
[1748213875204,4.09424633,174.7,174.69,38.46]
[1748213875596,1.1444379,174.76,174.69,42.46709828]
[1748213876307,18.15550729,174.72,174.68,38.46]
[1748213876482,4.06993335,174.71,174.68,38.46]
[1748213877676,6.40263755,174.73,174.68,38.46]
[1748213877877,24.55814484,174.73,174.68,38.46]
[1748213878188,25.70278379,174.73,174.68,38.46]
[1748213878387,19.30014624,174.73,174.68,38.46]
[1748213878778,4.06326772,174.72,174.68,38.46]
[1748213878979,4.06326772,174.72,174.68,42.46728153]
[1748213879876,4.06326772,174.71,174.68,42.46728153]
[1748213880610,4.06326772,174.71,174.68,38.46]
[1748213880971,21.43395353,174.72,174.68,38.46]
[1748213881172,18.15550729,174.71,174.68,38.46]
[1748213881402,18.15550729,174.7,174.68,38.46]
[1748213882004,1.14455762,174.74,174.68,38.46]
[1748213882191,19.79420648,174.74,174.68,38.46]
[1748213882393,6.4009868,174.73,174.68,38.46]
[1748213882591,18.15550729,174.71,174.68,38.46]
[1748213883021,4.05236129,174.7,174.68,38.46]
[1748213883504,22.20786858,174.7,174.68,38.46]
[1748213884106,4.05236129,174.69,174.68,38.46]
[1748213884513,22.20786858,174.69,174.68,38.46]
[1748213884917,26.47631881,174.69,174.63,42.46846773]
[1748213885097,18.15550729,174.67,174.63,42.46846773]
[1748213885294,18.15550729,174.66,174.63,38.46]
[1748213885491,18.15550729,174.65,174.63,38.46]
[1748213886140,4.05236129,174.64,174.63,38.46]
[1748213888325,5.19757429,174.64,174.63,38.46]
[1748213890530,5.19757429,174.64,174.58,74.3664]
[1748213891107,23.35308158,174.64,174.58,74.3664]
[1748213891328,23.35308158,174.64,174.58,78.37598677]
[1748213891519,4.05236129,174.63,174.58,78.37598677]
[1748213891922,4.05236129,174.63,174.58,72.76]
[1748213892109,4.05236129,174.63,174.58,38.46]
[1748213892110,23.35320016,174.63,174.58,38.46]
[1748213892525,4.05236129,174.62,174.58,38.46]
[1748213893531,19.30083887,174.63,174.58,38.46]
[1748213894346,18.15550729,174.62,174.58,38.46]
[1748213894547,19.30083887,174.63,174.58,38.46]
[1748213895246,4.03123341,174.62,174.58,38.46]
[1748213896050,1.14533158,174.63,174.58,38.46]
[1748213896431,19.30083887,174.63,174.58,38.46]
[1748213898320,4.02938713,174.62,174.58,38.46]
[1748213899025,1.14540977,174.61,174.58,38.46]
[1748213899830,19.3008755,174.62,174.58,38.46]
[1748213900321,18.15550729,174.61,174.55,42.45023887]
[1748213900518,18.15550729,174.61,174.55,42.45030233]
[1748213900921,19.30095892,174.61,174.55,42.45030233]
[1748213902226,1.14545163,174.61,174.55,42.45030233]
[1748213902432,3.27425777,174.62,174.55,42.45030233]
[1748213902625,1.145325,174.63,174.55,42.45030233]
[1748213907646,1.14514743,174.65,174.55,42.45030233]
[1748213907848,10.70864633,174.67,174.56,0.14216157]
[1748213908028,4.25998594,174.66,174.57,34.32]
[1748213908229,22.41549323,174.66,174.57,34.32]
[1748213908752,4.03336322,174.65,174.58,3.8]
[1748213908950,5.17854855,174.65,174.59,4.00939343]
[1748213909150,23.33405584,174.65,174.58,3.8]
[1748213909358,19.30069262,174.65,174.58,3.8]
[1748213909652,1.14518533,174.65,174.58,3.8]
[1748213909854,19.30069262,174.65,174.58,7.80954007]
[1748213910153,4.03471033,174.64,174.58,7.8096109]
[1748213910356,4.03471033,174.64,174.58,3.8]
[1748213910552,22.19021762,174.64,174.58,3.8]
[1748213911055,18.15550729,174.63,174.58,3.8]
[1748213911247,1.14534417,174.62,174.58,3.8]
[1748213913747,19.30085146,174.62,174.58,3.8]
[1748213914133,18.15550729,174.61,174.58,3.8]
[1748213914332,19.30080989,174.63,174.58,3.8]
[1748213915453,19.30088958,174.62,174.58,3.8]
[1748213915955,18.15550729,174.61,174.55,38.44]
[1748213917763,22.65789438,174.64,174.55,38.44]
[1748213917940,18.15550729,174.61,174.55,38.44]
[1748213919047,1.14547537,174.6,174.55,38.44]
[1748213919356,19.30098266,174.6,174.55,38.44]
[1748213919561,19.30098266,174.6,174.56,3.3]
[1748213920160,1.14547537,174.6,174.56,3.3]
[1748213920937,19.30093225,174.61,174.56,3.3]
[1748213921155,19.30093225,174.61,174.56,7.3100552]
[1748213921761,18.15550729,174.6,174.56,3.3]
[1748213922455,18.15550729,174.59,174.56,3.3]
[1748213922851,18.15550729,174.58,174.56,3.3]
[1748213923257,19.30113635,174.58,174.56,3.3]
[1748213927964,1.14562906,174.58,174.56,3.3]
[1748213928270,18.15550729,174.59,174.56,3.3]
[1748213928947,1.14547537,174.6,174.56,3.3]
[1748213929151,22.42898745,174.59,174.56,3.3]
[1748213929345,4.04414299,174.58,174.56,3.3]
[1748213930273,4.04414299,174.57,174.56,3.3]
[1748213930955,4.04414299,174.57,174.56,7.31008249]
[1748213931158,2.13779489,174.6,174.56,7.31008249]
[1748213931665,2.13779489,174.6,174.56,3.3]
[1748213931861,19.30093389,174.61,174.56,3.3]
[1748213932476,1.1454266,174.61,174.56,3.3]
[1748213932676,1.1454266,174.61,174.56,6.73716969]
[1748213932677,4.04820166,174.6,174.56,6.73716969]
[1748213933177,7.56034411,174.59,174.56,6.73716969]
[1748213934166,3.28409492,174.59,174.56,6.73716969]
[1748213934559,1.1454266,174.61,174.56,6.73716969]
[1748213934870,2.13846173,174.6,174.56,6.73716969]
[1748213935070,6.4153852,174.6,174.56,6.73716969]
[1748213935572,5.42241741,174.6,174.56,3.3]
[1748213935772,4.04949389,174.59,174.56,3.3]
[1748213936670,4.04949389,174.58,174.56,3.3]
[1748213937248,4.04949389,174.58,174.56,6.73720661]
[1748213937869,2.1386781,174.61,174.56,6.73720661]
[1748213938470,4.09424633,174.62,174.56,6.73720661]
[1748213939065,4.27734384,174.61,174.56,6.73720661]
[1748213939368,4.05049111,174.6,174.56,6.73720661]
[1748213940358,7.56226451,174.61,174.56,6.73720661]
[1748213940568,4.09424633,174.64,174.56,6.73720661]
[1748213941073,2.13852784,174.63,174.56,6.73720661]
[1748213941250,4.05049513,174.62,174.56,15.33024052]
[1748213941451,4.05049513,174.62,174.56,16.93504052]
[1748213942577,1.14517867,174.65,174.56,16.93504052]
[1748213943172,7.33387858,174.64,174.56,16.93504052]
[1748213943672,7.33387858,174.64,174.59,26.0]
[1748213943873,7.33387858,174.64,174.6,34.32]
[1748213944076,7.33387858,174.64,174.61,38.4]
[1748213944585,3.2835323,174.64,174.61,38.4]
[1748213944884,1.14501082,174.68,174.62,3.43603252]
[1748213945358,8.31805905,174.67,174.62,3.43603252]
[1748213946367,4.04637868,174.67,174.62,29.43603252]
[1748213946570,4.04637868,174.66,174.62,29.43603252]
[1748213946767,4.04637868,174.66,174.63,0.14216157]
[1748213947088,4.04637868,174.66,174.64,26.0]
[1748213947273,4.04637868,174.66,174.65,34.32]
[1748213947462,4.09424633,174.7,174.65,34.32]
[1748213947881,1.14467253,174.73,174.66,3.43524562]
[1748213948181,4.26630617,174.72,174.67,38.4]
[1748213948386,4.03963812,174.71,174.67,38.4]
[1748213949171,4.03963812,174.71,174.67,41.83485865]
[1748213949590,3.27548817,174.73,174.67,41.83485865]
[1748213950186,1.14467253,174.73,174.67,41.83485865]
[1748213950684,5.40385003,174.73,174.67,41.83485865]
[1748213950871,4.03539053,174.72,174.67,41.83485865]
[1748213951783,3.26989939,174.73,174.67,41.83485865]
[1748213951983,4.41455154,174.73,174.67,41.83485865]
[1748213952582,22.57005883,174.73,174.67,38.4]
[1748213952962,19.30015944,174.73,174.67,38.4]
[1748213953287,18.15550729,174.72,174.67,72.72]
[1748213953490,3.26989939,174.75,174.64,29.43548318]
[1748213953491,37.94991031,174.71,174.64,26.0]
[1748213953788,18.15550729,174.68,174.65,38.38]
[1748213953977,18.15550729,174.69,174.65,38.38]
[1748213955888,1.14495076,174.68,174.65,38.38]
[1748213960388,8.1745,174.71,174.65,38.38]
[1748213960572,36.80515615,174.72,174.65,38.38]
[1748213961167,4.02272532,174.71,174.65,38.38]
[1748213962090,5.16749623,174.71,174.65,41.81542832]
[1748213962978,4.02272532,174.71,174.65,41.81542832]
[1748213963886,1.14467291,174.73,174.65,41.81542832]
[1748213966990,19.3001802,174.73,174.65,41.81542832]
[1748213968006,18.15550729,174.71,174.65,41.81542832]
[1748213968173,18.15550729,174.71,174.66,38.32]
[1748213968502,18.64964886,174.72,174.66,38.32]
[1748213968685,18.15550729,174.71,174.66,38.32]
[1748213969805,1.14481969,174.7,174.66,38.32]
[1748213969991,1.14481969,174.7,174.67,1.7]
[1748213975485,18.15550729,174.68,174.67,1.7]
[1748213975679,22.18273321,174.69,174.67,1.7]
[1748213975885,4.02722592,174.69,174.67,1.7]
[1748213976393,22.56398064,174.7,174.67,1.7]
[1748213977102,4.40847335,174.7,174.67,1.7]
[1748213977280,3.26365366,174.72,174.68,34.3]
[1748213978607,4.40822895,174.74,174.68,34.3]
[1748213979007,4.04289873,174.73,174.68,34.3]
[1748213979210,4.04289873,174.73,174.68,37.73473344]
[1748213979911,3.27487617,174.74,174.68,37.73473344]
[1748213980583,1.14457529,174.74,174.68,37.73473344]
[1748213981711,4.0478924,174.73,174.68,37.73473344]
[1748213982493,4.0478924,174.73,174.68,34.3]
[1748213982886,19.30001243,174.75,174.69,38.32]
[1748213983085,2.13323906,174.74,174.69,38.32]
[1748213983320,1.14462313,174.73,174.67,1.7]
[1748213983616,4.04803886,174.72,174.68,72.62]
[1748213984591,19.30013042,174.73,174.67,1.7]
[1748213984812,19.30013042,174.73,174.68,38.32]
[1748213986095,3.27925514,174.72,174.68,38.32]
[1748213986619,3.27925514,174.72,174.68,41.75484719]
[1748213987314,18.15550729,174.74,174.68,41.75484719]
[1748213987485,2.13574047,174.73,174.68,41.75484719]
[1748213987687,6.18298173,174.73,174.68,41.75484719]
[1748213988517,4.04724126,174.73,174.68,41.75484719]
[1748213988718,4.04724126,174.72,174.68,41.75484719]
[1748213989514,18.15550729,174.74,174.68,41.75484719]
[1748213989895,7.55391278,174.73,174.68,41.75484719]
[1748213990617,3.28141606,174.73,174.68,41.75484719]